Cogmind - Beta 16 @@@ ROGUE MODE // 2026.01.03 @ 16:41:31 Player: JuustuToug Result: Destroyed by Y-54 Guardian with Gatling Laser Performance ------------- Evolutions (0) 0 Regions Visited (3) 600 Robots Destroyed (16) 80 Value Destroyed (385) 385 Prototype IDs (12) 240 Alien Tech Used (0) 0 Bonus (0) 0 TOTAL SCORE: 1305 Bonus ------- None Cogmind --------- Core Integrity 0/250 Matter 282/300 Energy 90/100 System Corruption 0% Temperature Cool (56) Movement Treading (160) Location -7/Recycling Parts ------- > --- POWER (1) -------- Subdweller Power Source > --- PROPULSION (2) --- Light Treads Light Treads > --- UTILITY (2) ------ Large Storage Unit Seismic Detector > --- WEAPON (2) ------- Beam Cannon Barrage Gun > --- INVENTORY (15) --- Light Treads Light Treads Light Treads Subdweller Optics Improved Terrain Scanner Tower Shield EM Pulse Gun Beam Cannon Subdweller Beam Cannon Assault Rifle Light Assault Rifle Subdweller Machine Gun Subdweller Machine Gun Peak State ------------ > --- POWER ------------ Subdweller Power Source > --- PROPULSION ------- Light Treads Light Treads > --- UTILITY ---------- Large Storage Unit Seismic Detector > --- WEAPON ----------- Subdweller Machine Gun Barrage Gun > --- INVENTORY -------- Light Treads Light Treads Light Treads Subdweller Optics Terrain Scanner Improved Terrain Scanner Tower Shield EM Pulse Gun Beam Cannon Beam Cannon Subdweller Beam Cannon Assault Rifle Light Assault Rifle Subdweller Machine Gun [Rating: 14] Favorites ----------- Power Subdweller Power Source Engine Subdweller Power Source Propulsion Light Treads Treads Light Treads Utility Seismic Detector Device Seismic Detector Storage Large Storage Unit Processor Signal Interpreter Weapon Subdweller Machine Gun Energy Cannon Subdweller Beam Cannon Ballistic Gun Subdweller Machine Gun Build | -11 -10 -10 -7 ------- Run | Yrd Mat Sub Rec Slots Evolved . | . . . . Power . | . . . . Propulsion . | . . . . Utility . | . . . . Weapon . | . . . . Parts Attached 21 | 8 2 10 1 Power 3 | 2 . 1 . Engine 3 | 2 . 1 . Core . | . . . . Reactor . | . . . . Propulsion 4 | 2 . 2 . Treads 4 | 2 . 2 . Leg . | . . . . Wheel . | . . . . Hover . | . . . . Flight . | . . . . Utility 4 | 2 1 1 . Device 1 | 1 . . . Storage 2 | 1 1 . . Processor 1 | . . 1 . Hackware . | . . . . Protection . | . . . . Artifact . | . . . . Weapon 10 | 2 1 6 1 Energy Gun . | . . . . Energy Cannon 3 | . 1 1 1 Ballistic Gun 7 | 2 . 5 . Ballistic Cannon . | . . . . Launcher . | . . . . Special Weapon . | . . . . Impact Weapon . | . . . . Slashing Weapon . | . . . . Piercing Weapon . | . . . . Special Melee Weapon . | . . . . Unidentified Prototypes . | . . . . Parts Lost 3 | . . 3 . Power 2 | . . 2 . Propulsion . | . . . . Utility . | . . . . Weapon 1 | . . 1 . Highest Loss Streak 1 | . . 1 . To Critical Strikes 1 | . . 1 . Average Backups 13 | 1 12 14 13 Power . | . 1 . . Propulsion 3 | . 4 3 3 Utility 2 | . 1 3 3 Weapon 6 | . 5 6 7 Tool/Special . | . . . . Unused Backups 11 | . . 3 8 Power . | . . . . Propulsion 3 | . . . 3 Utility 3 | . . . 3 Weapon 5 | . . 3 2 Tool/Special . | . . . . Average Slot Usage (%) 99 | . 100 99 100 Engine 13 | . 14 13 14 Treads 28 | . 28 28 28 Device 13 | . 14 13 14 Storage 14 | . 14 14 14 Energy Cannon 9 | . 7 13 . Ballistic Gun 18 | . 20 14 27 Peak Build Rating 14 | 7 8 14 14 Average Rating 10 | 5 7 11 13 On Entrance 7 | . 7 8 14 Avg Prop Armor Cover (%) . | . . . . Naked Turns . | . . . . Heaviest Build 38 | 15 31 38 33 Greatest Support 40 | 40 40 40 40 Greatest Overweight (x) . | . . . . Average Overweight (x) . | . . . . Largest Inventory Capacity 15 | 8 15 15 15 Average Capacity 14 | 7 14 15 15 Most Carried 15 | 3 15 15 15 Average Carried 13 | 1 12 14 14 Final Capacity 15 | 8 15 15 15 Final Carried 15 | 3 15 15 14 Class Distribution -------------------- 100% | Mutant Dominant Class ---------------- Mutant | -10/Materials Mutant | -10/Subcaves Mutant | -7/Recycling Resources | -11 -10 -10 -7 ----------- Run | Yrd Mat Sub Rec Matter Collected 644 | 245 157 180 62 Remotely . | . . . . Salvage Created 625 | 123 71 270 161 Parts 30 | 9 2 10 9 Haulers Intercepted 1 | . 1 . . Recyclers Shooed 2 | 1 1 . . Parts Field Recycled . | . . . . Retrieved Matter . | . . . . Parts Self-Destructed 17 | . . 17 . Prevented . | . . . . Parts Restored . | . . . . Kills | -11 -10 -10 -7 ------- Run | Yrd Mat Sub Rec Combat Hostiles Destroyed 8 | . . 7 1 Guns 5 | . . 4 1 Cannons 2 | . . 2 . Classes Destroyed 8 | 2 2 3 1 Tunneler 3 | 3 . . . Hauler 1 | . 1 . . Recycler 2 | 1 . . 1 Turret 1 | . . 1 . Watcher 1 | . 1 . . Swarmer 1 | . . 1 . Sentry 1 | . . . 1 Subdweller 6 | . . 6 . Best Kill Streak 4 | 4 1 2 2 Combat Bots Only 2 | . . 2 1 Max Kills in Single Turn 1 | 1 1 1 1 Gunslinging . | . . . . Exploded . | . . . . Melee . | . . . . Uniques/NPCs Destroyed . | . . . . Combat | -11 -10 -10 -7 -------- Run | Yrd Mat Sub Rec Hostile Shots Fired 139 | . . 67 72 Missed 54 | . . 25 29 Hits 85 | . . 42 43 Projectile 85 | . . 42 43 Critical Strikes 2 | . . 2 . Damage Taken 1117 | . . 806 311 Core 258 | . . 181 77 Absorbed by Shields . | . . . . Core Remaining (%) 100 | 100 . . . Volleys Fired 71 | 9 10 45 7 Largest 2 | 2 2 2 2 Hottest 110 | 40 40 110 88 Shots Fired 131 | 18 20 79 14 Gun 87 | 18 20 37 12 Cannon 44 | . . 42 2 Launcher . | . . . . Special . | . . . . Kinetic 87 | 18 20 37 12 Thermal 44 | . . 42 2 Explosive . | . . . . Electromagnetic . | . . . . Robot Hit Streak 25 | 6 7 25 4 Robot Miss Streak 2 | 2 2 2 1 Penetration Max . | . . . . Secondary Targets . | . . . . Shots Hit Robots 89 | 13 16 50 10 Core Hits 29 | 4 5 13 7 Critical Kills 1 | . . 1 . Critical Parts Destroyed . | . . . . Critical Strikes 1 | . . 1 . Meltdown 1 | . . 1 . Melee Attacks . | . . . . Impact . | . . . . Slashing . | . . . . Piercing . | . . . . Sneak Attacks . | . . . . Combat Hostiles . | . . . . Follow-up Attacks . | . . . . Damage Inflicted 1543 | 170 204 983 186 Guns 929 | 170 191 414 154 Cannons 586 | . . 569 17 Explosions . | . . . . Melee . | . . . . Ramming 28 | . 13 . 15 Kinetic 929 | 170 191 414 154 Thermal 586 | . . 569 17 Explosive . | . . . . Electromagnetic . | . . . . Impact . | . . . . Slashing . | . . . . Piercing . | . . . . Highest Corruption . | . . . . Average Corruption . | . . . . Corruption Purged . | . . . . Corruption Blocked . | . . . . Overload Shots . | . . . . Overflow Damage . | . . . . Projectiles . | . . . . Explosions . | . . . . Melee . | . . . . Knockbacks . | . . . . Impact . | . . . . Kinetic . | . . . . Secondary . | . . . . Self-Inflicted Damage . | . . . . Shots . | . . . . Rammed 4 | . 3 . 1 Targets Rammed 4 | . 3 . 1 Kicked . | . . . . Crushed . | . . . . Highest Temperature 50 | . . . 50 Average Temperature 14 | . . . 14 Received Heat Transfer 216 | . . 126 90 Siege Activations . | . . . . Martial Activations . | . . . . Shielding Activations . | . . . . Robots Disrupted . | . . . . Combat Hostiles . | . . . . Robots Corrupted . | . . . . Combat Hostiles . | . . . . Parts Fried . | . . . . Impact Corruptions . | . . . . Robots Melted 1 | . . 1 . Combat Hostiles 1 | . . 1 . Parts Melted 4 | . . 4 . Heat Transferred 999 | . . 962 37 Parts Sabotaged . | . . . . Parts Stolen . | . . . . Parts Stripped . | . . . . Power Chain Reactions . | . . . . Alert | -11 -10 -10 -7 ------- Run | Yrd Mat Sub Rec Maximum Alert Level . | . . . . Low Security (%) 100 | 100 100 . 100 Level 1 . | . . . . Level 2 . | . . . . Level 3 . | . . . . Level 4 . | . . . . Level 5 . | . . . . High Security . | . . . . Max Security . | . . . . Peak Influence 99 | 10 35 . 99 Initial 79 | . . . 79 Average 14 | 1 1 . 47 Influence Increases 385 | 20 45 190 130 Destroy 0b10 Robot/C 60 | . . 40 20 Destroy 0b10 Robot/NC 35 | 20 10 . 5 Destroy Leader 4 | . 4 . . Successful Hack 45 | . 31 . 14 Select Force Hacks 90 | . . . 90 Destroy Structure 1 | . . . 1 Lose Combat Pursuer 150 | . . 150 . Influence Decreases 376 | 20 45 24 287 Entered New Map 87 | . . . 87 Time Decay 289 | 20 45 24 200 Squads Dispatched . | . . . . Investigation . | . . . . Extermination . | . . . . Reinforcement . | . . . . Assault . | . . . . Garrison . | . . . . Intercept . | . . . . Searches Triggered . | . . . . Construction Impeded . | . . . . Haulers Reinforced . | . . . . Active Scanning Responses . | . . . . Cargo Convoy Interrupts . | . . . . Stealth | -11 -10 -10 -7 --------- Run | Yrd Mat Sub Rec Distress Signals 1 | . 1 . . Communications Jammed . | . . . . Distress Signals . | . . . . Times Spotted 22 | . 1 18 3 Peak Tracking Total 3 | . 1 2 3 Tactical Retreats 3 | . . 3 . Traps | -11 -10 -10 -7 ------- Run | Yrd Mat Sub Rec Traps Triggered 1 | . . 1 . Indirectly . | . . . . Trap Hack Attempts . | . . . . Triggered . | . . . . Disarmed . | . . . . Reprogrammed . | . . . . Reused . | . . . . Traps Extracted . | . . . . Installed . | . . . . Triggered . | . . . . Machines | -11 -10 -10 -7 ---------- Run | Yrd Mat Sub Rec Machines Disabled 2 | . . 2 . Max in Single Turn 1 | . . 1 . Machines Repaired . | . . . . Machines Dismantled . | . . . . Machines Sabotaged . | . . . . Overloaded Fab Kills . | . . . . Hacking | -11 -10 -10 -7 --------- Run | Yrd Mat Sub Rec Machines Accessed 10 | . 3 2 5 Terminals 5 | . 3 . 2 Fabricators . | . . . . Repair Stations . | . . . . Recycling Units 3 | . . . 3 Scanalyzers . | . . . . Garrison Access . | . . . . Total Hacks 28 | . 14 6 8 Successful 15 | . 5 6 4 Failed 13 | . 9 . 4 Catastrophic . | . . . . Database Lockouts . | . . . . Manual 22 | . 14 . 8 Terminals 19 | . 14 . 5 Fabricators . | . . . . Repair Stations . | . . . . Recycling Units 3 | . . . 3 Scanalyzers . | . . . . Garrison Access . | . . . . Terminal Hacks 6 | . . 6 . Record 5 | . . 5 . Proto ID Catalog 1 | . . 1 . Fabricator Hacks . | . . . . Repair Station Hacks . | . . . . Recycling Unit Hacks . | . . . . Scanalyzer . | . . . . Garrison Access Hacks . | . . . . Unauthorized Hacks 9 | . 5 . 4 Terminals 6 | . 5 . 1 Botnet 2 | . 2 . . Skim 4 | . 3 . 1 Fabricators . | . . . . Repair Stations . | . . . . Recycling Units 3 | . . . 3 Tunnel 3 | . . . 3 Scanalyzers . | . . . . Garrison Access . | . . . . Data Cores Recovered . | . . . . Used . | . . . . Hacking Detections 5 | . 3 . 2 Full Trace Events 1 | . . . 1 Feedback Events . | . . . . Feedback Blocked . | . . . . Robot Schematics Acquired . | . . . . Robots Built . | . . . . Authchips . | . . . . Time . | . . . . Total Robot Build Rating . | . . . . Part Schematics Acquired . | . . . . Parts Built . | . . . . Authchips . | . . . . Time . | . . . . Total Part Build Rating . | . . . . Part Studies Acquired . | . . . . Parts Repaired . | . . . . Time . | . . . . Parts Recycled . | . . . . Recycled Matter . | . . . . Retrieved Matter . | . . . . Retrieved Components . | . . . . Parts Scanalyzed . | . . . . Part Schematics Acquired . | . . . . Parts Damaged . | . . . . Bothacking | -11 -10 -10 -7 ------------ Run | Yrd Mat Sub Rec Used RIF Installer . | . . . . Robots Hacked . | . . . . Non-combat . | . . . . Combat . | . . . . Robot Hacks Applied . | . . . . Relay Couplers Released . | . . . . Fabnet Peak Effective % . | . . . . Robots Rewired . | . . . . Allies Hacked . | . . . . Hacks Repelled . | . . . . Allies | -11 -10 -10 -7 -------- Run | Yrd Mat Sub Rec Total Allies . | . . . . Largest Group . | . . . . Highest-Rated Group . | . . . . Highest-Rated Ally . | . . . . Total Orders . | . . . . Ally Attacks . | . . . . Total Damage . | . . . . Kills . | . . . . Allies Corrupted . | . . . . Allies Melted . | . . . . Intel | -11 -10 -10 -7 ------- Run | Yrd Mat Sub Rec Active Infowar (turns) 2933 | 12 1040 1430 451 Seismic 2933 | 12 1040 1430 451 Robot Analysis Total . | . . . . Derelict Logs Recovered 1 | . . 1 . Drone Launches . | . . . . Drone Recoveries . | . . . . Exploration | -11 -10 -10 -7 ------------- Run | Yrd Mat Sub Rec Turns Passed 3054 | 127 1040 1436 451 Spaces Moved 1298 | 54 225 775 244 Core 2 | 2 . . . Treads 1296 | 52 225 775 244 Legs . | . . . . Wheels . | . . . . Hover . | . . . . Flight . | . . . . Fastest Speed 50 | 50 160 160 160 Average Speed 159 | 155 160 160 160 Slowest Speed 160 | 160 160 160 160 Overloaded Moves . | . . . . Propulsion Burnouts . | . . . . Robots Hopped . | . . . . Potential Cave-ins . | . . . . Cave-ins Triggered . | . . . . Exploration Rate (%) 30 | 4 35 37 44 Regions Visited 3 Branch Regions 2 Pre-discovered Areas 4 | . . 1 3 Known Exits Taken . | . . . . Unknown Exits Taken 3 | 1 1 1 . Scrap Searched 2 | . . 2 . Spaces Dug 2 | . . 2 . Terrain Destroyed 3 | . . 2 1 Melee . | . . . . Projectile 3 | . . 2 1 AOE . | . . . . Terrain Rammed . | . . . . Walls Destroyed . | . . . . Machines Disabled . | . . . . Actions | -11 -10 -10 -7 --------- Run | Yrd Mat Sub Rec Total 2139 | 75 883 889 292 Wait 714 | 3 631 42 38 Move 1295 | 53 224 774 244 Hop . | . . . . Pick Up 21 | 2 12 7 . Fast Attach 8 | 7 . 1 . Attach 2 | . . 2 . Detach . | . . . . Swap 15 | 1 2 11 1 Drop 9 | . 1 7 1 Fire 71 | 9 10 45 7 Melee . | . . . . Ram . | . . . . Kick . | . . . . Crush 4 | . 3 . 1 Escape Stasis . | . . . . Rewire . | . . . . Trap . | . . . . Miscellaneous . | . . . . Route ------- -11/Scrapyard -10/Materials (discovered 2 exits: [*Min] / *Sub) -10/Subcaves (discovered 2 exits: *Mat / *Rec) -7/Recycling History --------- Turn | Location | Event 7 | -11/Scrapyard | Discovered new exit (range 15) 128 | -11/Scrapyard | Entered Materials 309 | -10/Materials | Build established: Mutant 611 | -10/Materials | Discovered new exit (range 11) 628 | -10/Materials | Derelicts attacked the area 1145 | -10/Materials | Discovered new exit (range 10) 1168 | -10/Materials | Entered Subcaves 1170 | -10/Subcaves | Ambushed by Subdwellers from Twisted Machinery 1329 | -10/Subcaves | Disturbed a concealed Subdweller 1345 | -10/Subcaves | Core integrity fell below 50% 1540 | -10/Subcaves | Learned location of Zion (-6) 1543 | -10/Subcaves | Visited Clippyterm 1548 | -10/Subcaves | Learned Factory fabricator intel 1548 | -10/Subcaves | Learned Factory stockpile data 1740 | -10/Subcaves | Discovered new exit (range 13) 1773 | -10/Subcaves | Identified exit to Materials 1948 | -10/Subcaves | Visited 4L-MR0's lab 1966 | -10/Subcaves | Found Tower Shield 2503 | -10/Subcaves | Discovered new exit (range 6) 2604 | -10/Subcaves | Entered Recycling 3009 | -7/Recycling | Core integrity fell below 20% 3055 | -7/Recycling | Destroyed by Y-54 Guardian with Gatling Laser Last Messages --------------- DISCOVERED[-6/Extension] 02699_ Connecting with Recycling Unit... >>Force(Tunnel) DISCOVERED[-5/Factory] 02723_ Connecting with Terminal... >>Trojan(Skim) Trojan loaded successfully. Testing... Terminal linked with 0 systems. Please expand to 4 more systems! 02876_ Connecting with Terminal... 02932_ Connecting with Recycling Unit... >>Force(Tunnel) DISCOVERED[-1/Command] 02963_ Y-54 Guardian springs to life. 03012_ Y-54 Guardian destroyed. 03021_ R-06 Scavenger collects Imp. Heat Sink. 03026_ Slammed into R-06 Scavenger. 03026_ R-06 Scavenger destroyed. 03027_ Acquired 62 matter. Map ----- +----------------------------------------------------+ | ##???????????????????????????????????????????????? | | ?????????????????????????????????????????????????? | | ?????????????????????????????????????????????????? | | ?????????????????????????????????????????????????? | | ?????????????????????????????????????????????????? | | ?????????????????????????????????????????????????? | | ?????????????????????????????????????????????????? | | ?????????????????????????????????????????????????? | | ?????????????????????????????????????????????????? | | ?????????????????????????????????????????????????? | | ?????????????????????????????????????????????????? | | ?????????????????????????? ??????????????????????? | | ?????????????????????????? ??????????????????????? | | ?????????????????????????? #?????????????????????? | | ?????????????????????????? #?????????????????????? | | ?????????????????????????? #?????????????????????? | | ?????????????? ????????? #?????????????????????? | | ?????????????" ????????? #?????????????????????? | | ?????????????# ??###???# #?????????????????????? | | ????????????## ??#"""#?# #???????? ??????????? | | ????????????# ###"Y"###r#???????# ??????????? | | ???????????### r#???????# ??????????? | | ??????????? #???????# ??????????? | | ???????????### #???????# #?????????? | | ???????????#"" r #???????# #?????????? | | ???????????#"Y @ #???????# #?????????? | | ????????????"" #####Y#???????# ########### | | ?############# #???#Y#???????# # ! ! # | | ?# ?? #?### #???????# # # | | ?# #???# #?#""=#???????# # / # | | ?# """" #???# #?#"Y!#???????# #] ! # | | ?# """""" #???# #?#""%#???????# #! ! # | | ## """"" #???# #?###!#???????# # ] # | | """"" #???# #???#=#???????# + # | | #???# #####/######### # ! # | | #???# # ! ! ## #####+##### | | ####### #???# # ! ## #???# #???? | | ##?######+####### # ## ##?## ##### | | #?# # # ! # ### # | | #?# # #[! # T" + | | #?# # %+! + " ### # | | #?# # ####* # #?## ## " | | #?# # #??# # #??# ## " | | #?# # #??# ! ! !#######??# ## " | | #?# # #??# #????????# ## | | ?## # #### !! ########## ## " | | ??## + / ! + ## " | | ???# ############################### " | | ??# #?????????????????????????????# | | ??# #?????????????????????????????#### | +----------------------------------------------------+ Best States ------------- Heat Dissipation 25 Energy Generation 15 Energy Capacity 250 Matter Stores 300 Matter Capacity 300 Sight Range 16 Terrain Scan Density 10 Evasion (%) 40 Recoil Reduction 2 Item Schematics ----------------- None Robot Schematics ------------------ None Fabricated ------------ Nothing Repaired ---------- Nothing Studied --------- None Alien Tech Used ----------------- None Achievements -------------- None Challenges ------------ None Game ------ Seed WarpLinearRedirector Manual? 0 Play Time 00:15:35 Cumulative 287.0 hours Start 2026.01.03 @ 16:27:36 End 2026.01.03 @ 16:41:31 Sessions 1 Manual Loads 0 Difficulty Rogue Special Mode None Game No. 188 Rogue 188 Adventurer 0 Explorer 0 Win Type - Total 10 Types 7/0/1/1/0/0/0/1/0/0 Lore% 91 Gallery% 80 Achievement% 64 Wizard Run 0 Options --------- Layout 1 ASCII 0 Keyboard 0 Movement Mouse Keybinds 0 Fullscreen 2 Font 32/SmallcapsGlow Map View 50x35 Zoom Use 0% Tactical HUD 1 Map Filters NONE Filters NONE Steam 1 RUN: 7c7866b9-d8ed-44f2-9d45-20009892c749